bitfinex/quotes_SOLUSD_20220101
["timestamp","ask_amount","ask_price","bid_price","bid_amount"]
[1641025825669,9.1663,173.16,173.04,87.09579368]
[1641025825871,9.1663,173.16,173.04,85.50369368]
[1641025826069,9.4263,173.16,173.01,1.42669368]
[1641025826270,9.4263,173.16,173.01,2.78959368]
[1641025826470,9.4263,173.16,173.01,1.8629]
[1641025827073,9.4263,173.16,173.02,1.42669368]
[1641025827475,9.4263,173.16,173.02,1.68669368]
[1641025828176,9.4263,173.16,173.02,0.26]
[1641025828572,9.4263,173.16,172.98,81.09409368]
[1641025828778,12.63939073,173.16,172.98,79.6674]
[1641025829175,22.83481318,173.16,172.98,79.6674]
[1641025829374,3.21309073,173.14,172.98,79.6674]
[1641025829572,8.6731,173.06,172.98,79.6674]
[1641025829772,8.6731,173.06,172.96,1.2877]
[1641025829978,9.4331,173.06,172.96,1.2877]
[1641025830574,9.1731,173.06,172.96,2.71439368]
[1641025830773,9.1731,173.06,172.96,3.21439368]
[1641025830977,8.6731,173.06,172.96,3.21439368]
[1641025831199,8.6706,173.08,172.96,3.21439368]
[1641025831398,9.1706,173.08,172.96,3.21439368]
[1641025831999,9.1706,173.08,172.96,3.47439368]
[1641025832401,9.1706,173.08,172.96,12.14649368]
[1641025835407,9.1706,173.08,172.96,18.43749368]
[1641025835607,1.3341,173.09,172.96,18.43749368]
[1641025835807,8.6697,173.1,172.96,18.43749368]
[1641025836010,9.1697,173.1,172.96,18.43749368]
[1641025836410,9.1697,173.1,172.96,17.0108]
[1641025836607,9.4297,173.1,172.97,1.42669368]
[1641025837008,9.4297,173.1,172.97,9.4314]
[1641025837509,9.4297,173.1,172.97,10.85809368]
[1641025837710,1.3341,173.09,172.98,1.2937]
[1641025837910,8.671,173.07,172.98,1.7937]
[1641025838110,8.671,173.07,172.98,1.5537]
[1641025838510,9.171,173.07,172.98,1.5537]
[1641025838909,9.171,173.07,172.98,1.2937]
[1641025839511,9.431,173.07,172.98,1.2937]
[1641025840512,9.431,173.07,172.98,1.5537]
[1641025841819,8.931,173.07,172.98,1.5537]
[1641025842015,9.431,173.07,172.98,1.5537]
[1641025843819,9.171,173.07,172.98,1.5537]
[1641025845219,8.671,173.07,172.98,2.0537]
[1641025845424,10.0044,173.09,172.98,2.0537]
[1641025845820,10.5044,173.09,172.98,1.5537]
[1641025846720,10.5044,173.09,172.98,10.7249]
[1641025847121,10.5044,173.09,172.98,10.2249]
[1641025847320,10.7644,173.09,172.98,1.5537]
[1641025849026,10.5044,173.09,172.98,1.5537]
[1641025849727,10.7644,173.09,172.98,1.5537]
[1641025851751,10.7644,173.09,172.94,1.42669368]
[1641025851958,10.7644,173.09,172.9,8.6792]
[1641025852156,8.6759,172.99,172.9,8.6792]
[1641025852354,15.9339,172.99,172.9,8.6792]
[1641025853154,15.9339,172.99,172.9,9.1792]
[1641025855457,15.9339,172.99,172.9,9.4392]
[1641025857258,9.1759,172.99,172.9,9.4392]
[1641025859163,8.6759,172.99,172.9,9.4392]
[1641025859365,9.1759,172.99,172.9,9.4392]
[1641025859562,9.1759,172.99,172.9,18.1145]
[1641025860464,9.1759,172.99,172.9,9.4392]
[1641025864568,9.1759,172.99,172.9,18.1146]
[1641025865468,8.6759,172.99,172.9,18.1146]
[1641025865668,8.6735,173.02,172.9,18.1146]
[1641025865866,3.21309073,173.05,172.9,19.54129368]
[1641025866069,1.3652,173.07,172.9,19.54129368]
[1641025866869,8.13705638,173.09,172.99,8.6714]
[1641025867071,3.21309073,173.13,173.0,30.17967495]
[1641025867270,3.21309073,173.13,173.0,31.60636863]
[1641025867468,3.21309073,173.13,173.0,32.36636863]
[1641025867868,3.21309073,173.13,173.06,8.6676]
[1641025868070,3.21309073,173.13,173.0,0.76]
[1641025868269,338.70445892,173.14,173.01,0.26]
[1641025868471,338.70445892,173.14,173.0,0.26]
[1641025868669,3.21309073,173.19,173.0,0.26]
[1641025868871,8.6694,173.11,173.04,8.6688]
[1641025869069,8.6694,173.11,173.04,8.9288]
[1641025869270,3.21309073,173.18,173.04,9.4288]
[1641025869469,3.71309073,173.18,173.04,8.9288]
[1641025869672,1.57739595,173.14,173.04,8.9288]
[1641025869871,2.07739595,173.14,173.04,8.9288]
[1641025870172,1.57739595,173.13,173.04,8.9288]
[1641025870372,2.07739595,173.13,173.04,8.9288]
[1641025870673,8.669,173.11,173.04,8.9288]
[1641025870874,9.169,173.11,173.04,8.9288]
[1641025871077,8.669,173.11,173.04,8.9288]
[1641025871673,9.169,173.11,173.04,8.9288]
[1641025871873,1.57739595,173.1,173.04,8.9288]
[1641025872973,2.07739595,173.1,173.04,8.9288]
[1641025873677,1.57739595,173.11,173.04,9.4288]
[1641025874174,2.07739595,173.11,173.04,8.9288]
[1641025874574,1.57739595,173.11,173.04,8.9288]
[1641025875275,2.07739595,173.11,173.04,8.9288]
[1641025875475,1.57739595,173.1,173.04,8.9288]
[1641025876575,2.07739595,173.1,173.04,8.9288]
[1641025877276,10.24649595,173.11,173.04,8.9288]
[1641025877876,1.57739595,173.1,173.04,8.9288]
[1641025878279,2.07739595,173.1,173.04,8.9288]
[1641025878477,10.24649595,173.11,173.04,8.9288]
[1641025878676,11.00649595,173.11,173.04,8.9288]
[1641025879677,11.00649595,173.11,173.01,1.2592]
[1641025879878,18.23849595,173.11,172.99,73.3145]
[1641025880179,8.672,173.05,172.99,1.2742]
[1641025880376,9.172,173.05,172.92,1.2578]
[1641025880576,9.172,173.05,172.94,78.049]
[1641025880780,8.672,173.05,172.98,8.6718]
[1641025880978,8.672,173.05,172.98,9.4318]
[1641025882178,8.672,173.05,172.98,8.9318]
[1641025882879,9.172,173.05,172.98,8.9318]
[1641025885285,9.172,173.05,172.98,9.4318]
[1641025885684,9.172,173.05,172.98,8.9318]
[1641025886282,8.672,173.05,172.98,8.9318]
[1641025886683,9.172,173.05,172.98,8.9318]
[1641025888586,9.172,173.05,172.98,0.26]
[1641025888988,8.672,173.05,172.96,0.26]
[1641025889189,9.172,173.05,172.96,0.76]
[1641025889389,9.172,173.05,172.96,0.5]
[1641025889791,8.672,173.05,172.97,8.6721]
[1641025889995,9.172,173.05,172.97,8.9321]
[1641025890890,9.172,173.05,172.97,9.4321]
[1641025891093,9.172,173.05,172.97,8.9321]
[1641025892514,0.5,173.05,172.97,8.9321]
[1641025892719,8.6712,173.06,172.97,9.4321]
[1641025892914,9.1712,173.06,172.97,9.4321]
[1641025893513,8.6712,173.06,172.97,9.4321]
[1641025893921,9.1712,173.06,172.97,9.4321]
[1641025895718,8.6712,173.06,172.97,9.4321]
[1641025895914,9.1712,173.06,172.97,9.4321]
[1641025897620,9.1712,173.06,172.97,8.9321]
[1641025897818,9.1712,173.06,172.97,8.6721]
[1641025898019,9.4312,173.06,172.95,88.513]
[1641025898222,1.57739595,173.05,172.95,88.513]
[1641025898420,8.6732,173.02,172.95,88.513]
[1641025898822,9.1732,173.02,172.95,88.513]
[1641025899220,9.1732,173.02,172.95,88.773]
[1641025899421,0.5,173.02,172.95,89.273]
[1641025899621,2.07739595,173.05,172.95,89.273]
[1641025899819,10.24939595,173.05,172.95,89.273]
[1641025900223,10.74939595,173.05,172.95,89.273]
[1641025900420,9.172,173.05,172.95,89.273]
[1641025900624,1.57739595,173.06,172.95,89.273]
[1641025900822,1.57739595,173.06,173.01,8.6704]
[1641025901019,0.5,173.06,173.01,8.9304]
[1641025901422,1.57739595,173.08,173.01,8.9304]
[1641025901624,0.5,173.08,173.01,8.9304]
[1641025902224,2.07739595,173.09,173.01,8.9304]
[1641025902822,1.57739595,173.08,173.01,8.9304]
[1641025903223,2.07739595,173.08,173.01,8.9304]
[1641025903823,8.6706,173.07,173.01,8.9304]
[1641025904425,0.5,173.07,173.01,8.9304]
[1641025904626,1.57739595,173.09,173.01,8.9304]
[1641025904925,1.57739595,173.09,173.01,9.4304]
[1641025905123,2.07739595,173.09,173.01,9.4304]
[1641025905525,1.57739595,173.09,173.01,9.4304]
[1641025906030,2.07739595,173.09,173.01,9.4304]
[1641025906224,10.74699595,173.09,173.01,8.9304]
[1641025906424,10.74699595,173.09,173.01,9.4304]
[1641025906624,10.24699595,173.09,173.01,9.4304]
[1641025907026,10.74699595,173.09,173.01,9.4304]
[1641025907424,8.6696,173.09,173.01,9.4304]
[1641025908026,9.1696,173.09,173.01,9.4304]
[1641025909026,9.1696,173.09,173.01,9.1704]
[1641025910127,9.1696,173.09,173.01,8.6704]
[1641025910629,9.1696,173.09,173.01,8.9304]
[1641025914636,9.1696,173.09,173.01,9.4304]
[1641025915239,8.6696,173.09,173.01,9.4304]
[1641025915841,74.7132,173.1,173.01,9.4304]
[1641025916251,8.669,173.11,173.01,9.4304]
[1641025917045,8.669,173.11,173.02,1.2338]
[1641025917247,8.669,173.11,173.05,8.6685]
[1641025917474,9.169,173.11,173.05,8.9285]
[1641025917680,9.169,173.11,173.02,1.2338]
[1641025917876,10.74639595,173.11,172.98,30.32649368]
[1641025918079,11.00639595,173.11,172.98,30.2196]
[1641025918279,11.00639595,173.11,172.98,1.8198]
[1641025918683,11.00639595,173.11,173.0,8.6707]
[1641025919078,1.57739595,173.09,173.0,8.9307]
[1641025919278,8.6705,173.08,173.0,8.9307]
[1641025919480,9.1705,173.08,173.0,8.9307]
[1641025925587,9.4305,173.08,173.0,8.6707]
[1641025925988,11.00789595,173.08,173.0,8.6707]
[1641025926893,11.00789595,173.08,173.0,8.9307]
[1641025929495,10.74789595,173.08,173.0,8.9307]
[1641025930394,10.74789595,173.08,173.0,9.4307]
[1641025930594,10.74789595,173.08,173.0,8.9307]
[1641025930798,10.74789595,173.08,173.0,9.4307]
[1641025930996,9.1705,173.08,173.0,8.9307]
[1641025931297,9.4305,173.08,173.0,0.26]
[1641025931500,9.4305,173.08,172.99,0.26]
[1641025931701,11.00789595,173.08,172.99,0.26]
[1641025931899,10.74789595,173.08,172.97,77.33]
[1641025932101,10.74789595,173.08,172.97,77.83]
[1641025932501,8.6713,173.06,172.97,113.4784853]
[1641025932903,9.1713,173.06,172.97,113.4784853]
[1641025934008,9.1713,173.06,172.97,112.9784853]
[1641025934211,9.1713,173.06,172.97,113.4784853]
[1641025936525,8.6713,173.06,172.97,113.4784853]
[1641025937025,9.1713,173.06,172.97,113.4784853]
[1641025939329,9.1713,173.06,172.97,114.90517898]
[1641025941031,9.1713,173.06,172.97,114.40517898]
[1641025941228,9.1713,173.06,172.97,114.90517898]
[1641025941431,10.74869595,173.06,172.97,114.90517898]
[1641025942230,10.74869595,173.06,172.97,114.40517898]
[1641025942528,1.57739595,173.05,172.97,112.9784853]
[1641025942729,1.57739595,173.05,172.97,86.0021]
[1641025942928,8.6722,173.04,172.97,86.0021]
[1641025943330,9.1722,173.04,172.97,86.0021]
[1641025947736,8.6722,173.04,172.97,86.0021]
[1641025947938,9.1722,173.04,172.97,86.0021]
[1641025948340,8.6722,173.04,172.97,86.0021]
[1641025948937,9.1722,173.04,172.97,86.0021]
[1641025949138,8.6722,173.04,172.97,86.0021]
[1641025949737,9.1722,173.04,172.97,86.0021]
[1641025949937,0.5,173.04,172.97,86.0021]
[1641025950137,1.57739595,173.05,172.97,86.5021]
[1641025950338,1.57739595,173.05,172.97,86.0021]
[1641025950542,2.07739595,173.05,172.97,86.0021]
[1641025950941,1.57739595,173.06,172.97,86.0021]
[1641025951140,1.57739595,173.06,172.97,87.92879368]
[1641025951339,1.57739595,173.05,172.97,87.92879368]
[1641025951740,10.74919595,173.05,172.97,87.92879368]
[1641025952144,10.24919595,173.05,172.97,87.92879368]
[1641025952742,10.74919595,173.05,172.97,87.92879368]
[1641025952938,10.24919595,173.05,172.97,87.92879368]
[1641025953441,10.74919595,173.05,172.97,87.92879368]
[1641025953642,10.24919595,173.05,172.97,87.92879368]
[1641025954742,10.74919595,173.05,172.97,87.92879368]
[1641025955145,0.5,173.05,172.97,87.92879368]
[1641025955345,10.74849595,173.06,172.97,87.92879368]
[1641025956346,10.24849595,173.06,172.97,87.92879368]
[1641025956748,10.74849595,173.06,172.97,87.92879368]
[1641025956948,10.24849595,173.06,172.97,87.92879368]
[1641025957649,10.74849595,173.06,172.97,8.6721]
[1641025957850,10.74849595,173.06,172.94,78.7923]
[1641025958051,10.74849595,173.06,172.94,79.2923]
[1641025958251,1.57739595,173.03,172.94,79.2923]
[1641025958452,8.6733,173.02,172.94,79.2923]
[1641025958651,8.6733,173.02,172.95,24.81699324]
[1641025959051,1.57739595,173.03,172.96,8.6728]
[1641025959252,0.5,173.02,172.96,8.6728]
[1641025959453,0.5,173.02,172.96,8.9328]
[1641025959752,1.57739595,173.03,172.96,8.9328]
[1641025960351,2.07739595,173.03,172.96,8.9328]
[1641025960551,1.57739595,173.03,172.96,8.9328]
[1641025960754,10.75009595,173.03,172.96,8.9328]
[1641025961355,9.1727,173.03,172.96,8.9328]
[1641025963455,0.5,173.03,172.96,8.9328]
[1641025963656,8.6721,173.04,172.96,9.4328]
[1641025964256,8.6721,173.04,172.96,10.85949368]
[1641025964461,9.1721,173.04,172.96,12.21809368]
[1641025964658,0.5,173.04,172.96,12.21809368]
[1641025964860,9.926,173.05,172.96,12.21809368]
[1641025965460,10.426,173.05,172.96,12.21809368]
[1641025966360,10.426,173.05,172.96,10.0314]
[1641025966560,10.426,173.05,172.95,8.6733]
[1641025967364,12.00339595,173.05,172.95,8.6733]
[1641025967560,12.00339595,173.05,172.93,28.87348118]
[1641025967961,1.57739595,173.04,172.93,29.63348118]
[1641025968162,8.6736,173.01,172.94,8.6738]
[1641025968361,9.1736,173.01,172.94,8.6738]
[1641025968561,9.1736,173.01,172.94,8.9338]
[1641025969366,8.6736,173.01,172.94,8.9338]
[1641025969987,9.1736,173.01,172.94,8.9338]
[1641025970589,8.6736,173.01,172.94,9.4338]
[1641025971388,9.1736,173.01,172.94,10.7894]
[1641025972693,9.1736,173.01,172.94,8.6738]
[1641025972894,9.4336,173.01,172.9,83.5885]
[1641025973593,1.57739595,172.99,172.9,8.6792]
[1641025973795,8.6762,172.96,172.9,8.6792]
[1641025974196,10.75359595,172.96,172.9,8.6792]
[1641025974696,1.57739595,172.94,172.9,8.6792]
[1641025974895,8.6783,172.92,172.9,8.6792]
[1641025975296,9.1783,172.92,172.9,8.9392]
[1641025975496,2.05126954,172.91,172.9,8.9392]
[1641025976101,2.05126954,172.91,172.9,10.36589368]
[1641025976300,1.57739595,172.94,172.9,14.37902407]
[1641025976500,1.57739595,172.98,172.9,14.37902407]
[1641025976899,2.07739595,172.98,172.9,12.95233039]
[1641025977099,1.57739595,172.97,172.9,12.95233039]
[1641025977299,1.57739595,172.97,172.9,13.45233039]
[1641025977503,2.07739595,172.97,172.9,12.95233039]
[1641025977706,1.57739595,172.98,172.9,12.95233039]
[1641025977904,1.57739595,172.98,172.91,1.34]
[1641025978105,1.57739595,172.98,172.91,1.6]
[1641025978305,2.07739595,172.98,172.91,1.6]
[1641025979516,10.75259595,172.98,172.91,1.6]
[1641025979720,10.75259595,172.98,172.91,0.26]
[1641025980016,9.1752,172.98,172.9,8.9392]
[1641025985750,8.6752,172.98,172.9,8.9392]
[1641025985951,9.1752,172.98,172.9,8.9392]
[1641025990767,1.57739595,172.97,172.9,8.9392]
[1641025990965,8.6765,172.96,172.9,8.9392]
[1641025991369,9.1765,172.96,172.9,8.9392]
[1641025993392,9.1765,172.96,172.9,8.6792]
[1641025993995,8.6765,172.96,172.9,8.6792]
[1641025994196,9.1765,172.96,172.9,8.6792]
[1641025994800,9.1765,172.96,172.9,8.9392]
[1641025995801,1.57739595,172.97,172.9,8.9392]
[1641025995998,10.25299595,172.97,172.9,8.9392]
[1641025996597,10.25299595,172.97,172.9,10.178]
[1641025996798,8.6756,172.97,172.9,10.178]
[1641025996999,9.1756,172.97,172.9,10.178]
[1641025997398,10.75299595,172.97,172.9,10.178]
[1641025997598,10.25299595,172.97,172.9,10.178]
[1641025998198,10.75299595,172.97,172.9,10.178]
[1641026000598,10.25299595,172.97,172.9,10.178]
[1641026000898,10.75299595,172.97,172.9,10.178]
[1641026001100,10.75299595,172.97,172.9,8.9392]
[1641026005006,9.1756,172.97,172.9,8.9392]
[1641026010211,8.6756,172.97,172.9,8.9392]
[1641026010412,9.1756,172.97,172.9,8.9392]
[1641026012113,9.1756,172.97,172.9,8.6792]
[1641026012515,9.4356,172.97,172.9,8.6792]
[1641026012715,1.57739595,172.96,172.9,8.6792]
[1641026012915,8.6792,172.93,172.9,8.6792]
[1641026013313,9.1792,172.93,172.9,8.6792]
[1641026013514,2.05126954,172.92,172.9,8.6792]
[1641026013918,2.55126954,172.92,172.9,8.6792]
[1641026014418,8.6799,172.91,172.9,8.6792]
[1641026014917,9.1799,172.91,172.9,8.6792]
[1641026016821,10.75729595,172.91,172.9,8.6792]
[1641026017419,9.1799,172.91,172.9,8.6792]
[1641026018823,11.513295,172.91,172.9,8.6792]
[1641026029453,9.1799,172.91,172.9,8.6792]
[1641026031154,9.1799,172.91,172.9,8.9392]
[1641026031655,9.1799,172.91,172.9,8.6792]
[1641026033559,9.4399,172.91,172.9,8.6792]
[1641026033759,8.40674088,172.9,172.8,1.2762]
[1641026033959,8.6814,172.87,172.8,1.2762]
[1641026034358,9.1814,172.87,172.8,1.7762]
[1641026034959,9.1814,172.87,172.8,2.0362]
[1641026040160,9.1814,172.87,172.8,1.2762]
[1641026040964,8.6814,172.87,172.8,1.2762]
[1641026041367,9.1814,172.87,172.8,1.2762]
[1641026041564,8.6814,172.87,172.8,1.2762]
[1641026041765,8.6814,172.87,172.8,1.5362]
[1641026042365,8.6814,172.87,172.8,1.2762]
[1641026042566,9.1814,172.87,172.8,1.2762]
[1641026043665,9.1814,172.87,172.8,1.5362]
[1641026044466,9.1814,172.87,172.8,1.2762]
[1641026045868,9.1814,172.87,172.8,1.5362]
[1641026050275,9.1814,172.87,172.8,1.2762]
[1641026050471,9.1814,172.87,172.77,79.2611]
[1641026051273,9.1814,172.87,172.77,87.9427]
[1641026051472,9.1814,172.87,172.78,1.2643]
[1641026051873,9.1814,172.87,172.78,1.5243]
[1641026052698,9.1814,172.87,172.78,1.2643]
[1641026053300,9.1814,172.87,172.76,87.1688]
[1641026053500,11.01879595,172.87,172.76,78.4865]
[1641026053900,11.01879595,172.87,172.77,1.3266]
[1641026054099,9.4414,172.87,172.77,1.3266]
[1641026054299,9.1814,172.87,172.77,1.3266]
[1641026054700,9.1814,172.87,172.77,1.5866]
[1641026054905,1.57739595,172.86,172.77,1.5866]
[1641026055300,8.6829,172.83,172.77,1.5866]
[1641026055799,9.1829,172.83,172.77,1.5866]
[1641026057105,9.1829,172.83,172.76,78.4865]
[1641026058504,9.1829,172.83,172.76,78.7465]
[1641026064418,9.1829,172.83,172.76,78.4865]
[1641026066016,9.1829,172.83,172.76,78.7465]
[1641026066620,8.6829,172.83,172.76,78.7465]
[1641026066818,9.1829,172.83,172.76,78.7465]
[1641026067318,1.57739595,172.85,172.76,78.7465]
[1641026067517,10.25949595,172.85,172.76,78.7465]
[1641026068018,10.75949595,172.85,172.76,78.7465]
[1641026068619,10.75949595,172.85,172.76,87.4286]
[1641026068820,9.1821,172.85,172.77,1.2759]
[1641026069020,9.1821,172.85,172.77,1.5359]
[1641026077729,9.1821,172.85,172.73,8.6839]
[1641026078027,9.4421,172.85,172.76,0.26]
[1641026078228,11.01949595,172.85,172.76,0.26]
[1641026078632,1.57739595,172.84,172.72,74.1133]
[1641026078832,8.6837,172.81,172.74,8.6834]
[1641026079030,8.6837,172.81,172.74,8.9434]
[1641026084344,0.5,172.84,172.74,8.9434]
[1641026084345,8.6832,172.82,172.74,8.9434]
[1641026084742,9.1832,172.82,172.74,8.9434]
[1641026085143,9.1832,172.82,172.74,0.26]
[1641026085543,9.1832,172.82,172.73,2.043]
[1641026086563,9.1832,172.82,172.73,10.7269]
[1641026097076,8.6832,172.82,172.73,10.7269]
[1641026097275,9.1832,172.82,172.73,10.7269]
[1641026105888,9.1832,172.82,172.73,10.4669]
[1641026106889,8.6832,172.82,172.73,10.4669]
[1641026107292,8.6832,172.82,172.73,10.7269]
[1641026109994,9.1832,172.82,172.73,10.7269]
[1641026112617,8.6832,172.82,172.73,10.7269]
[1641026112817,9.1832,172.82,172.73,10.7269]
[1641026113019,8.6832,172.82,172.73,10.7269]
[1641026113217,9.1832,172.82,172.73,10.7269]
[1641026113619,8.6832,172.82,172.73,10.7269]
[1641026113818,9.1832,172.82,172.73,10.7269]
[1641026114020,8.6832,172.82,172.73,10.7269]
[1641026114219,9.1832,172.82,172.73,10.7269]
[1641026115319,8.6832,172.82,172.73,10.7269]
[1641026115521,2.90519595,172.84,172.73,10.7269]
[1641026115720,8.6827,172.83,172.73,10.7269]
[1641026116521,1.57739595,172.84,172.73,12.15359368]
[1641026116721,1.57739595,172.84,172.73,17.39759368]
[1641026117720,8.6816,172.86,172.73,17.39759368]
[1641026118524,9.1816,172.86,172.73,17.39759368]
[1641026118724,10.25899595,172.86,172.73,17.39759368]
[1641026118922,10.75899595,172.86,172.73,17.39759368]
[1641026119124,10.25899595,172.86,172.73,17.39759368]
[1641026119324,10.75899595,172.86,172.73,17.39759368]
[1641026119822,10.25899595,172.86,172.73,17.13759368]
[1641026120433,10.75899595,172.86,172.73,17.13759368]
[1641026120634,9.1816,172.86,172.73,17.13759368]
[1641026121134,8.6816,172.86,172.73,17.39759368]
[1641026121734,10.25899595,172.86,172.73,17.39759368]
[1641026125941,10.75899595,172.86,172.73,17.39759368]
[1641026126146,10.75899595,172.86,172.73,12.15359368]
[1641026126745,1.57739595,172.85,172.73,11.89359368]
[1641026126943,10.75939595,172.85,172.73,11.89359368]
[1641026127344,10.75939595,172.85,172.73,10.4669]
[1641026128145,10.75939595,172.85,172.73,10.7269]
[1641026128446,1.57739595,172.84,172.73,10.7269]
[1641026128645,10.25969595,172.84,172.73,10.7269]
[1641026128852,10.75969595,172.84,172.73,10.7269]
[1641026129046,10.25969595,172.84,172.73,10.7269]
[1641026129246,10.75969595,172.84,172.73,10.7269]
[1641026129849,10.25969595,172.84,172.74,1.42669368]
[1641026130049,10.25969595,172.84,172.77,8.6819]
[1641026130347,8.6823,172.84,172.77,8.6819]
[1641026130646,8.6823,172.84,172.77,8.9419]
[1641026130845,10.25969595,172.84,172.77,9.4419]
[1641026131047,10.25969595,172.84,172.77,8.9419]
[1641026131269,10.25969595,172.84,172.78,30.93071405]
[1641026131568,10.25969595,172.84,172.78,31.19071405]
[1641026132068,1.57739595,172.84,172.78,40.37221405]
[1641026132469,8.6817,172.85,172.78,39.87221405]
[1641026132673,9.1817,172.85,172.78,40.37221405]
[1641026132869,8.6817,172.85,172.78,39.87221405]
[1641026133068,9.1817,172.85,172.78,39.87221405]
[1641026133268,8.6817,172.85,172.78,40.37221405]
[1641026133469,9.1817,172.85,172.78,40.37221405]
[1641026134070,10.25909595,172.85,172.78,31.19071405]
[1641026134270,10.75909595,172.85,172.78,31.19071405]
[1641026134471,10.25909595,172.85,172.78,0.26]
[1641026134673,10.75909595,172.85,172.77,8.682]
[1641026135073,10.75909595,172.85,172.75,9.9169]
[1641026135470,10.75909595,172.85,172.75,10.4169]
[1641026135971,1.57739595,172.84,172.75,10.6769]
[1641026136171,8.6831,172.83,172.75,10.1769]
[1641026136372,9.1831,172.83,172.75,10.1769]
[1641026136573,9.1831,172.83,172.75,10.6769]
[1641026136773,8.6831,172.83,172.75,10.6769]
[1641026136973,10.26049595,172.83,172.75,10.6769]
[1641026137173,1.57739595,172.83,172.75,10.6769]
[1641026138273,1.57739595,172.83,172.75,1.4942]
[1641026138474,0.5,172.83,172.75,1.4942]
[1641026138675,0.5,172.83,172.75,1.9942]
[1641026138877,2.07739595,172.84,172.75,1.4942]
[1641026139075,8.6833,172.82,172.75,1.4942]
[1641026139477,9.1833,172.82,172.75,1.4942]
[1641026139680,9.1833,172.82,172.75,1.9942]
[1641026140081,8.6833,172.82,172.75,1.9942]
[1641026140286,8.6833,172.82,172.75,1.4942]
[1641026140684,10.26059595,172.83,172.75,10.1775]
[1641026140884,1.57739595,172.83,172.75,10.6775]
[1641026141782,1.57739595,172.84,172.75,10.6775]
[1641026144187,1.57739595,172.84,172.75,12.10419368]
[1641026144386,1.57739595,172.85,172.75,12.10419368]
[1641026146187,1.57739595,172.86,172.75,12.10419368]
[1641026156299,1.57739595,172.86,172.75,10.6775]
[1641026156899,1.57739595,172.85,172.75,10.6775]
[1641026157101,10.25979595,172.85,172.75,10.6775]
[1641026158303,1.57739595,172.85,172.75,10.6775]
[1641026158501,1.57739595,172.85,172.75,12.10419368]
[1641026159700,1.57739595,172.86,172.75,12.10419368]
[1641026160301,1.57739595,172.85,172.75,12.10419368]
[1641026162408,1.57739595,172.85,172.75,11.84419368]
[1641026164716,1.57739595,172.85,172.75,12.10419368]
[1641026170844,1.57739595,172.85,172.75,10.6775]
[1641026171946,1.57739595,172.85,172.75,12.10419368]
[1641026172146,1.57739595,172.85,172.75,17.79819368]
[1641026172949,1.57739595,172.87,172.75,17.79819368]
[1641026173747,78.00179595,172.89,172.75,17.79819368]
[1641026174150,78.00179595,172.89,172.75,94.34939368]
[1641026180958,78.00179595,172.89,172.75,102.91339368]
[1641026182355,76.65149595,172.89,172.75,102.91339368]
[1641026187964,76.65149595,172.89,172.75,102.65339368]
[1641026189963,76.65149595,172.89,172.75,102.91339368]
[1641026191362,77.15149595,172.89,172.75,102.91339368]
[1641026191762,76.65149595,172.89,172.75,102.91339368]
[1641026192063,1.57739595,172.88,172.75,102.91339368]
[1641026192664,1.57739595,172.88,172.75,96.95939368]
[1641026192864,1.57739595,172.88,172.75,88.39539368]
[1641026193665,0.5,172.88,172.75,88.39539368]
[1641026193865,83.7547,172.89,172.75,88.39539368]
[1641026194064,83.7547,172.89,172.75,88.65539368]
[1641026194267,84.2547,172.89,172.75,88.65539368]
[1641026194869,83.7547,172.89,172.75,88.65539368]
[1641026195083,75.0741,172.89,172.75,88.65539368]
[1641026195374,75.5741,172.89,172.75,88.65539368]
[1641026195575,75.0741,172.89,172.75,88.65539368]
[1641026196273,75.5741,172.89,172.75,88.65539368]
[1641026196478,75.0741,172.89,172.75,88.65539368]
[1641026196878,75.5741,172.89,172.75,88.65539368]
[1641026197878,75.0741,172.89,172.75,88.65539368]
[1641026198380,75.5741,172.89,172.75,88.65539368]
[1641026198797,75.0741,172.89,172.75,88.65539368]